[Event "Titled Tuesday Blitz May 2 Late 2023"]
[White "Henriquez Villagra, Cristobal"]
[Black "Kosakowski, Jakub"]
[WhiteFideId "3409350"]
[BlackFideId "1185080"]
[WhiteElo "2542"]
[BlackElo "2488"]
[Result "1-0"]
[Round "06"]
[TimeControl "180+2"]
[Date "2023.05.02"]
[WhiteClock "0:00:08"]
[BlackClock "0:00:05"]

1. e4 {[%clk 0:03:00]}  c6 {[%clk 0:02:58]} 2. d3 {[%clk 0:02:58]}  d5 {[%clk 0:02:58]} 3. Nd2 {[%clk 0:02:59]}  e5 {[%clk 0:02:56]} 4. g3 {[%clk 0:02:58]}  Bc5 {[%clk 0:02:54]} 5. Bg2 {[%clk 0:02:59]}  Nf6 {[%clk 0:02:54]} 6. Ngf3 {[%clk 0:02:55]}  O-O {[%clk 0:02:51]} 7. O-O {[%clk 0:02:54]}  dxe4 {[%clk 0:02:49]} 8. dxe4 {[%clk 0:02:48]}  Qe7 {[%clk 0:02:48]} 9. Qe2 {[%clk 0:02:42]}  a5 {[%clk 0:02:42]} 10. Nc4 {[%clk 0:02:38]}  Nbd7 {[%clk 0:02:34]} 11. a4 {[%clk 0:02:38]}  Re8 {[%clk 0:02:30]} 12. Bd2 {[%clk 0:02:38]}  b6 {[%clk 0:02:23]} 13. Ne3 {[%clk 0:02:15]}  Ba6 {[%clk 0:02:22]} 14. c4 {[%clk 0:02:16]}  Nf8 {[%clk 0:02:02]} 15. Nf5 {[%clk 0:02:10]}  Qc7 {[%clk 0:02:01]} 16. Bc3 {[%clk 0:02:05]}  Rad8 {[%clk 0:01:49]} 17. b3 {[%clk 0:02:04]}  Bc8 {[%clk 0:01:46]} 18. h3 {[%clk 0:01:48]}  Bxf5 {[%clk 0:01:41]} 19. exf5 {[%clk 0:01:49]}  e4 {[%clk 0:01:42]} 20. Bxf6 {[%clk 0:01:35]}  gxf6 {[%clk 0:01:32]} 21. Nd2 {[%clk 0:01:33]}  Qxg3 {[%clk 0:01:19]} 22. Nxe4 {[%clk 0:01:31]}  Qg7 {[%clk 0:00:59]} 23. Kh1 {[%clk 0:01:22]}  Nd7 {[%clk 0:00:57]} 24. Rad1 {[%clk 0:01:16]}  Kh8 {[%clk 0:00:54]} 25. Rd3 {[%clk 0:01:16]}  Rg8 {[%clk 0:00:45]} 26. Rg3 {[%clk 0:01:11]}  Qf8 {[%clk 0:00:45]} 27. Qh5 {[%clk 0:01:08]}  Bd4 {[%clk 0:00:38]} 28. Rd1 {[%clk 0:00:49]}  Nc5 {[%clk 0:00:33]} 29. Rxd4 {[%clk 0:00:32]}  Rxd4 {[%clk 0:00:20]} 30. Nxf6 {[%clk 0:00:33]}  Rg7 {[%clk 0:00:20]} 31. Qh6 {[%clk 0:00:24]}  Rd8 {[%clk 0:00:18]} 32. Rg5 {[%clk 0:00:22]}  Nd3 {[%clk 0:00:08]} 33. Kg1 {[%clk 0:00:10]}  Nf4 {[%clk 0:00:06]} 34. h4 {[%clk 0:00:08]}  Rxg5 {[%clk 0:00:05]} 35. Qxh7# {[%clk 0:00:08]} 1-0


[Site "https://www.chess.com"]

[Event "Titled Tuesday Blitz May 2 Late 2023"]
[White "Naroditsky, Daniel"]
[Black "Tanenbaum, Zachary"]
[WhiteFideId "2026961"]
[BlackFideId "2060850"]
[WhiteElo "2633"]
[BlackElo "2175"]
[Result "1-0"]
[Round "06"]
[TimeControl "180+2"]
[Date "2023.05.02"]
[WhiteClock "0:01:04"]
[BlackClock "0:00:01"]

1. d4 {[%clk 0:03:00]}  d5 {[%clk 0:03:00]} 2. Nc3 {[%clk 0:03:00]}  Nf6 {[%clk 0:03:00]} 3. Bf4 {[%clk 0:03:00]}  a6 {[%clk 0:03:01]} 4. e3 {[%clk 0:03:00]}  Bf5 {[%clk 0:03:01]} 5. Nf3 {[%clk 0:03:01]}  e6 {[%clk 0:03:02]} 6. Ne5 {[%clk 0:03:01]}  Nfd7 {[%clk 0:03:02]} 7. g4 {[%clk 0:02:57]}  Bg6 {[%clk 0:03:00]} 8. h4 {[%clk 0:02:56]}  Nxe5 {[%clk 0:03:00]} 9. Bxe5 {[%clk 0:02:56]}  h5 {[%clk 0:02:59]} 10. Bd3 {[%clk 0:02:54]}  Bxd3 {[%clk 0:02:56]} 11. cxd3 {[%clk 0:02:54]}  hxg4 {[%clk 0:02:51]} 12. Qxg4 {[%clk 0:02:55]}  Nd7 {[%clk 0:02:51]} 13. Bg3 {[%clk 0:02:55]}  Nf6 {[%clk 0:02:38]} 14. Qf3 {[%clk 0:02:56]}  c5 {[%clk 0:02:35]} 15. dxc5 {[%clk 0:02:49]}  Bxc5 {[%clk 0:02:36]} 16. O-O-O {[%clk 0:02:50]}  Rc8 {[%clk 0:02:35]} 17. Kb1 {[%clk 0:02:50]}  Qa5 {[%clk 0:02:10]} 18. Be5 {[%clk 0:02:47]}  Bb4 {[%clk 0:01:25]} 19. Ne2 {[%clk 0:02:40]}  Rh5 {[%clk 0:00:59]} 20. Bxf6 {[%clk 0:02:12]}  Rf5 {[%clk 0:00:59]} 21. Qg2 {[%clk 0:02:13]}  Rxf6 {[%clk 0:00:58]} 22. h5 {[%clk 0:02:12]}  Bf8 {[%clk 0:00:48]} 23. f4 {[%clk 0:02:08]}  Qb6 {[%clk 0:00:43]} 24. Nd4 {[%clk 0:02:03]}  Bc5 {[%clk 0:00:37]} 25. Qxg7 {[%clk 0:01:53]}  Bxd4 {[%clk 0:00:35]} 26. exd4 {[%clk 0:01:53]}  Qxd4 {[%clk 0:00:34]} 27. h6 {[%clk 0:01:51]}  Ke7 {[%clk 0:00:18]} 28. h7 {[%clk 0:01:51]}  Qf2 {[%clk 0:00:06]} 29. h8=Q {[%clk 0:01:48]}  Qc2+ {[%clk 0:00:06]} 30. Ka1 {[%clk 0:01:47]}  Rxh8 {[%clk 0:00:06]} 31. Qxh8 {[%clk 0:01:44]}  Rxf4 {[%clk 0:00:06]} 32. Rc1 {[%clk 0:01:41]}  Qxd3 {[%clk 0:00:04]} 33. Rc7+ {[%clk 0:01:29]}  Kd6 {[%clk 0:00:04]} 34. Rhc1 {[%clk 0:01:28]}  Rc4 {[%clk 0:00:03]} 35. Qd8+ {[%clk 0:01:20]}  Ke5 {[%clk 0:00:03]} 36. R7xc4 {[%clk 0:01:08]}  dxc4 {[%clk 0:00:04]} 37. Qc7+ {[%clk 0:01:08]}  Kd4 {[%clk 0:00:02]} 38. Qf4+ {[%clk 0:01:05]}  Kd5 {[%clk 0:00:02]} 39. Qxf7 {[%clk 0:01:05]}  b5 {[%clk 0:00:02]} 40. Re1 {[%clk 0:01:04]}  Kc5 {[%clk 0:00:01]} 41. Qxe6 {[%clk 0:01:04]} 1-0


[Site "https://www.chess.com"]

[Event "Titled Tuesday Blitz May 2 Late 2023"]
[White "Klimkowski, Jan"]
[Black "Deac, Bogdan-Daniel"]
[WhiteFideId "21856222"]
[BlackFideId "1226380"]
[WhiteElo "2331"]
[BlackElo "2649"]
[Result "0-1"]
[Round "06"]
[TimeControl "180+2"]
[Date "2023.05.02"]
[WhiteClock "0:00:14"]
[BlackClock "0:00:13"]

1. e4 {[%clk 0:03:00]}  Nf6 {[%clk 0:02:57]} 2. e5 {[%clk 0:03:01]}  Nd5 {[%clk 0:02:54]} 3. d4 {[%clk 0:03:01]}  d6 {[%clk 0:02:54]} 4. exd6 {[%clk 0:03:01]}  cxd6 {[%clk 0:02:53]} 5. c4 {[%clk 0:03:01]}  Nf6 {[%clk 0:02:53]} 6. Nc3 {[%clk 0:03:01]}  g6 {[%clk 0:02:53]} 7. Nf3 {[%clk 0:03:01]}  Bg7 {[%clk 0:02:52]} 8. Be2 {[%clk 0:03:00]}  O-O {[%clk 0:02:52]} 9. O-O {[%clk 0:03:01]}  d5 {[%clk 0:02:52]} 10. c5 {[%clk 0:02:52]}  Nc6 {[%clk 0:02:48]} 11. Bf4 {[%clk 0:02:45]}  Bg4 {[%clk 0:02:47]} 12. Rc1 {[%clk 0:02:38]}  Ne4 {[%clk 0:02:36]} 13. Be3 {[%clk 0:02:25]}  e6 {[%clk 0:02:20]} 14. h3 {[%clk 0:02:22]}  Bxf3 {[%clk 0:02:18]} 15. Bxf3 {[%clk 0:02:23]}  f5 {[%clk 0:02:19]} 16. Ne2 {[%clk 0:02:07]}  g5 {[%clk 0:02:14]} 17. Qd3 {[%clk 0:01:44]}  Qf6 {[%clk 0:01:55]} 18. Qb3 {[%clk 0:01:19]}  Qf7 {[%clk 0:01:32]} 19. Bxe4 {[%clk 0:01:17]}  dxe4 {[%clk 0:01:28]} 20. Bxg5 {[%clk 0:01:17]}  Nxd4 {[%clk 0:01:27]} 21. Nxd4 {[%clk 0:01:11]}  Bxd4 {[%clk 0:01:28]} 22. Bh6 {[%clk 0:00:43]}  Rfd8 {[%clk 0:01:17]} 23. c6 {[%clk 0:00:41]}  bxc6 {[%clk 0:00:39]} 24. Rxc6 {[%clk 0:00:42]}  Rab8 {[%clk 0:00:38]} 25. Qg3+ {[%clk 0:00:25]}  Qg6 {[%clk 0:00:32]} 26. Qxg6+ {[%clk 0:00:25]}  hxg6 {[%clk 0:00:33]} 27. b3 {[%clk 0:00:24]}  Rb6 {[%clk 0:00:29]} 28. Rfc1 {[%clk 0:00:22]}  Rxc6 {[%clk 0:00:20]} 29. Rxc6 {[%clk 0:00:23]}  Bb6 {[%clk 0:00:20]} 30. Kf1 {[%clk 0:00:18]}  Rd1+ {[%clk 0:00:16]} 31. Ke2 {[%clk 0:00:19]}  Ra1 {[%clk 0:00:16]} 32. Rc2 {[%clk 0:00:19]}  e5 {[%clk 0:00:14]} 33. Be3 {[%clk 0:00:14]}  Bd4 {[%clk 0:00:14]} 34. Rd2 {[%clk 0:00:14]}  Bc3 {[%clk 0:00:14]} 35. Rc2 {[%clk 0:00:14]}  Re1# {[%clk 0:00:13]} 0-1


[Site "https://www.chess.com"]

[Event "Titled Tuesday Blitz May 2 Late 2023"]
[White "Aldokhin, Ivan"]
[Black "Ter-Sahakyan, Samvel"]
[WhiteFideId "24115720"]
[BlackFideId "13302531"]
[WhiteElo "2322"]
[BlackElo "2566"]
[Result "0-1"]
[Round "06"]
[TimeControl "180+2"]
[Date "2023.05.02"]
[WhiteClock "0:00:03"]
[BlackClock "0:00:06"]

1. e4 {[%clk 0:02:59]}  c5 {[%clk 0:03:00]} 2. Nf3 {[%clk 0:03:00]}  e6 {[%clk 0:03:00]} 3. d4 {[%clk 0:03:00]}  cxd4 {[%clk 0:03:01]} 4. Nxd4 {[%clk 0:03:01]}  Nf6 {[%clk 0:03:01]} 5. Nc3 {[%clk 0:03:02]}  Nc6 {[%clk 0:03:02]} 6. Nxc6 {[%clk 0:03:01]}  bxc6 {[%clk 0:03:02]} 7. Bd3 {[%clk 0:03:02]}  d5 {[%clk 0:03:01]} 8. Qe2 {[%clk 0:03:03]}  Be7 {[%clk 0:02:58]} 9. Bf4 {[%clk 0:03:02]}  O-O {[%clk 0:02:57]} 10. O-O {[%clk 0:03:02]}  a5 {[%clk 0:02:56]} 11. Rad1 {[%clk 0:03:02]}  g6 {[%clk 0:02:50]} 12. Rfe1 {[%clk 0:02:58]}  Re8 {[%clk 0:02:47]} 13. exd5 {[%clk 0:02:36]}  exd5 {[%clk 0:02:28]} 14. h3 {[%clk 0:02:36]}  Be6 {[%clk 0:02:26]} 15. Qf3 {[%clk 0:02:34]}  Qb6 {[%clk 0:02:11]} 16. Na4 {[%clk 0:02:11]}  Qb7 {[%clk 0:02:10]} 17. Bg5 {[%clk 0:01:36]}  Nd7 {[%clk 0:02:09]} 18. Bxe7 {[%clk 0:01:21]}  Rxe7 {[%clk 0:02:10]} 19. h4 {[%clk 0:01:21]}  Qb4 {[%clk 0:01:55]} 20. b3 {[%clk 0:01:07]}  Qxh4 {[%clk 0:01:37]} 21. Bf1 {[%clk 0:00:52]}  Rae8 {[%clk 0:01:35]} 22. Qc3 {[%clk 0:00:51]}  Nf6 {[%clk 0:01:15]} 23. g3 {[%clk 0:00:36]}  Qg5 {[%clk 0:01:15]} 24. Qxa5 {[%clk 0:00:23]}  h5 {[%clk 0:00:52]} 25. Qd2 {[%clk 0:00:22]}  Qf5 {[%clk 0:00:51]} 26. Nc5 {[%clk 0:00:18]}  h4 {[%clk 0:00:49]} 27. Qf4 {[%clk 0:00:14]}  Qxf4 {[%clk 0:00:29]} 28. gxf4 {[%clk 0:00:14]}  Bg4 {[%clk 0:00:30]} 29. Rxe7 {[%clk 0:00:11]}  Rxe7 {[%clk 0:00:31]} 30. Ra1 {[%clk 0:00:09]}  Nh5 {[%clk 0:00:29]} 31. a4 {[%clk 0:00:05]}  Nxf4 {[%clk 0:00:24]} 32. a5 {[%clk 0:00:06]}  Ra7 {[%clk 0:00:13]} 33. Ra4 {[%clk 0:00:06]}  g5 {[%clk 0:00:13]} 34. Nd3 {[%clk 0:00:03]}  Ne2+ {[%clk 0:00:10]} 35. Bxe2 {[%clk 0:00:02]}  Bxe2 {[%clk 0:00:11]} 36. Nc5 {[%clk 0:00:03]}  Bb5 {[%clk 0:00:10]} 37. Ra3 {[%clk 0:00:03]}  Kg7 {[%clk 0:00:09]} 38. b4 {[%clk 0:00:03]}  f5 {[%clk 0:00:07]} 39. Re3 {[%clk 0:00:03]}  g4 {[%clk 0:00:06]} 40. Re6 {[%clk 0:00:02]}  f4 {[%clk 0:00:04]} 41. Kg2 {[%clk 0:00:02]}  f3+ {[%clk 0:00:04]} 42. Kh2 {[%clk 0:00:03]}  g3+ {[%clk 0:00:04]} 43. Kg1 {[%clk 0:00:01]}  h3 {[%clk 0:00:05]} 44. fxg3 {[%clk 0:00:01]}  h2+ {[%clk 0:00:04]} 45. Kxh2 {[%clk 0:00:02]}  f2 {[%clk 0:00:05]} 46. Re5 {[%clk 0:00:02]}  f1=Q {[%clk 0:00:05]} 47. Rg5+ {[%clk 0:00:02]}  Kf6 {[%clk 0:00:05]} 48. Rg4 {[%clk 0:00:03]}  Qf2+ {[%clk 0:00:05]} 49. Kh3 {[%clk 0:00:03]}  Bf1+ {[%clk 0:00:05]} 50. Kh4 {[%clk 0:00:03]}  Rh7# {[%clk 0:00:06]} 0-1


[Site "https://www.chess.com"]

[Event "Titled Tuesday Blitz May 2 Late 2023"]
[White "Ibarra Jerez, Jose Carlos"]
[Black "Sai Krishna G V"]
[WhiteFideId "2226332"]
[BlackFideId "5028280"]
[WhiteElo "2638"]
[BlackElo "2359"]
[Result "1-0"]
[Round "06"]
[TimeControl "180+2"]
[Date "2023.05.02"]
[WhiteClock "0:00:08"]
[BlackClock "0:00:12"]

1. e4 {[%clk 0:03:00]}  e5 {[%clk 0:02:58]} 2. Nf3 {[%clk 0:03:01]}  Nc6 {[%clk 0:02:58]} 3. Nc3 {[%clk 0:03:02]}  Nf6 {[%clk 0:02:58]} 4. h3 {[%clk 0:03:02]}  g6 {[%clk 0:02:52]} 5. d4 {[%clk 0:03:02]}  exd4 {[%clk 0:02:50]} 6. Nxd4 {[%clk 0:03:02]}  Bg7 {[%clk 0:02:48]} 7. Nxc6 {[%clk 0:03:03]}  bxc6 {[%clk 0:02:48]} 8. Bd3 {[%clk 0:02:58]}  d5 {[%clk 0:02:44]} 9. O-O {[%clk 0:02:50]}  O-O {[%clk 0:02:42]} 10. Qf3 {[%clk 0:02:49]}  d4 {[%clk 0:02:30]} 11. Na4 {[%clk 0:02:43]}  Nd7 {[%clk 0:02:27]} 12. Qg3 {[%clk 0:02:42]}  Nb6 {[%clk 0:02:22]} 13. Nc5 {[%clk 0:02:39]}  Qd6 {[%clk 0:02:20]} 14. Nb3 {[%clk 0:02:11]}  c5 {[%clk 0:02:11]} 15. Bf4 {[%clk 0:02:09]}  Qc6 {[%clk 0:02:11]} 16. Na5 {[%clk 0:01:56]}  Qa4 {[%clk 0:02:11]} 17. Nc4 {[%clk 0:01:57]}  Nxc4 {[%clk 0:02:03]} 18. b3 {[%clk 0:01:57]}  Qc6 {[%clk 0:02:03]} 19. bxc4 {[%clk 0:01:48]}  Be6 {[%clk 0:02:00]} 20. Bxc7 {[%clk 0:01:45]}  Qa4 {[%clk 0:02:00]} 21. Bd6 {[%clk 0:01:44]}  Rfc8 {[%clk 0:01:59]} 22. f4 {[%clk 0:01:37]}  Bxc4 {[%clk 0:01:59]} 23. f5 {[%clk 0:01:37]}  Bxd3 {[%clk 0:01:54]} 24. cxd3 {[%clk 0:01:36]}  c4 {[%clk 0:01:51]} 25. dxc4 {[%clk 0:01:34]}  Qxc4 {[%clk 0:01:49]} 26. e5 {[%clk 0:01:28]}  Qd5 {[%clk 0:01:42]} 27. Rad1 {[%clk 0:01:22]}  Rc2 {[%clk 0:01:39]} 28. Rf4 {[%clk 0:01:14]}  Bxe5 {[%clk 0:01:30]} 29. Bxe5 {[%clk 0:01:07]}  Qxe5 {[%clk 0:01:31]} 30. fxg6 {[%clk 0:01:00]}  hxg6 {[%clk 0:01:25]} 31. Rdxd4 {[%clk 0:00:59]}  Rxa2 {[%clk 0:01:23]} 32. Kh2 {[%clk 0:00:43]}  a5 {[%clk 0:01:21]} 33. Qb3 {[%clk 0:00:39]}  Qe6 {[%clk 0:01:05]} 34. Qxe6 {[%clk 0:00:39]}  fxe6 {[%clk 0:01:06]} 35. Rf6 {[%clk 0:00:39]}  Kg7 {[%clk 0:01:01]} 36. Rxe6 {[%clk 0:00:40]}  Rf8 {[%clk 0:00:54]} 37. Rdd6 {[%clk 0:00:40]}  Rff2 {[%clk 0:00:53]} 38. Rxg6+ {[%clk 0:00:40]}  Kf7 {[%clk 0:00:54]} 39. Rg3 {[%clk 0:00:39]}  a4 {[%clk 0:00:53]} 40. Ra6 {[%clk 0:00:39]}  a3 {[%clk 0:00:52]} 41. h4 {[%clk 0:00:39]}  Rf4 {[%clk 0:00:46]} 42. Kh3 {[%clk 0:00:39]}  Ra1 {[%clk 0:00:44]} 43. Rgxa3 {[%clk 0:00:30]}  Rh1+ {[%clk 0:00:43]} 44. Kg3 {[%clk 0:00:31]}  Rhxh4 {[%clk 0:00:44]} 45. Ra7+ {[%clk 0:00:30]}  Ke6 {[%clk 0:00:44]} 46. R3a6+ {[%clk 0:00:30]}  Kd5 {[%clk 0:00:41]} 47. Rg7 {[%clk 0:00:29]}  Re4 {[%clk 0:00:10]} 48. Rg5+ {[%clk 0:00:25]}  Kd4 {[%clk 0:00:10]} 49. Ra4+ {[%clk 0:00:20]}  Ke3 {[%clk 0:00:11]} 50. Rxe4+ {[%clk 0:00:08]}  Rxe4 {[%clk 0:00:12]} 51. Rf5 {[%clk 0:00:08]}  Kd4 {[%clk 0:00:10]} 52. Rf4 {[%clk 0:00:07]}  Ke5 {[%clk 0:00:07]} 53. Rxe4+ {[%clk 0:00:07]}  Kxe4 {[%clk 0:00:08]} 54. Kg4 {[%clk 0:00:07]}  Ke5 {[%clk 0:00:09]} 55. Kg5 {[%clk 0:00:07]}  Ke6 {[%clk 0:00:09]} 56. g4 {[%clk 0:00:06]}  Kf7 {[%clk 0:00:09]} 57. Kh6 {[%clk 0:00:06]}  Kg8 {[%clk 0:00:09]} 58. Kg6 {[%clk 0:00:05]}  Kh8 {[%clk 0:00:07]} 59. Kf7 {[%clk 0:00:03]}  Kh7 {[%clk 0:00:08]} 60. g5 {[%clk 0:00:04]}  Kh8 {[%clk 0:00:09]} 61. Kg6 {[%clk 0:00:05]}  Kg8 {[%clk 0:00:09]} 62. Kh6 {[%clk 0:00:05]}  Kh8 {[%clk 0:00:10]} 63. g6 {[%clk 0:00:06]}  Kg8 {[%clk 0:00:10]} 64. g7 {[%clk 0:00:06]}  Kf7 {[%clk 0:00:11]} 65. Kh7 {[%clk 0:00:07]}  Ke7 {[%clk 0:00:12]} 66. g8=Q {[%clk 0:00:08]} 1-0


[Site "https://www.chess.com"]

[Event "Titled Tuesday Blitz May 2 Late 2023"]
[White "Yoo, Christopher Woojin"]
[Black "Koziorowicz, Michal"]
[WhiteFideId "30909694"]
[BlackFideId "21809194"]
[WhiteElo "2519"]
[BlackElo "2255"]
[Result "0-1"]
[Round "06"]
[TimeControl "180+2"]
[Date "2023.05.02"]
[WhiteClock "0:00:02"]
[BlackClock "0:00:09"]

1. e4 {[%clk 0:03:00]}  c5 {[%clk 0:02:59]} 2. Nf3 {[%clk 0:03:00]}  d6 {[%clk 0:02:59]} 3. d4 {[%clk 0:03:00]}  cxd4 {[%clk 0:03:00]} 4. Nxd4 {[%clk 0:03:00]}  Nf6 {[%clk 0:03:01]} 5. Nc3 {[%clk 0:03:00]}  g6 {[%clk 0:03:01]} 6. Be3 {[%clk 0:02:57]}  Bg7 {[%clk 0:03:02]} 7. f3 {[%clk 0:02:56]}  O-O {[%clk 0:03:02]} 8. Qd2 {[%clk 0:02:57]}  Nc6 {[%clk 0:03:02]} 9. O-O-O {[%clk 0:02:57]}  d5 {[%clk 0:03:03]} 10. Qe1 {[%clk 0:02:57]}  e5 {[%clk 0:03:03]} 11. Nxc6 {[%clk 0:02:58]}  bxc6 {[%clk 0:03:04]} 12. exd5 {[%clk 0:02:59]}  Nxd5 {[%clk 0:03:05]} 13. Bc4 {[%clk 0:02:57]}  Be6 {[%clk 0:03:04]} 14. Kb1 {[%clk 0:02:56]}  Re8 {[%clk 0:02:53]} 15. Bb3 {[%clk 0:02:38]}  a5 {[%clk 0:02:50]} 16. h4 {[%clk 0:02:34]}  Qb8 {[%clk 0:02:43]} 17. Na4 {[%clk 0:02:21]}  Nxe3 {[%clk 0:02:35]} 18. Qxe3 {[%clk 0:02:19]}  Bxb3 {[%clk 0:02:28]} 19. axb3 {[%clk 0:02:13]}  e4 {[%clk 0:02:19]} 20. fxe4 {[%clk 0:02:08]}  Qe5 {[%clk 0:02:19]} 21. Rhe1 {[%clk 0:02:03]}  Rab8 {[%clk 0:02:18]} 22. Qc5 {[%clk 0:01:57]}  Qf6 {[%clk 0:02:09]} 23. h5 {[%clk 0:01:41]}  Rb4 {[%clk 0:01:56]} 24. Rf1 {[%clk 0:01:31]}  Qe6 {[%clk 0:01:48]} 25. hxg6 {[%clk 0:01:18]}  hxg6 {[%clk 0:01:47]} 26. Rd6 {[%clk 0:01:08]}  Qxe4 {[%clk 0:01:45]} 27. Qxc6 {[%clk 0:01:04]}  Qe2 {[%clk 0:01:17]} 28. Qf3 {[%clk 0:00:40]}  Qe7 {[%clk 0:01:13]} 29. Rfd1 {[%clk 0:00:31]}  Reb8 {[%clk 0:01:13]} 30. Rd7 {[%clk 0:00:27]}  Qe6 {[%clk 0:01:03]} 31. Rd8+ {[%clk 0:00:27]}  Rxd8 {[%clk 0:00:57]} 32. Rxd8+ {[%clk 0:00:28]}  Bf8 {[%clk 0:00:56]} 33. Qd5 {[%clk 0:00:20]}  Qe7 {[%clk 0:00:31]} 34. Rd7 {[%clk 0:00:12]}  Qe1+ {[%clk 0:00:28]} 35. Ka2 {[%clk 0:00:12]}  Rf4 {[%clk 0:00:26]} 36. Rd8 {[%clk 0:00:09]}  Rf1 {[%clk 0:00:26]} 37. b4 {[%clk 0:00:05]}  Qxb4 {[%clk 0:00:22]} 38. Nc3 {[%clk 0:00:05]}  a4 {[%clk 0:00:22]} 39. Qb5 {[%clk 0:00:04]}  Qxb5 {[%clk 0:00:15]} 40. Nxb5 {[%clk 0:00:03]}  Rf2 {[%clk 0:00:16]} 41. c4 {[%clk 0:00:03]}  Rc2 {[%clk 0:00:11]} 42. Rc8 {[%clk 0:00:03]}  Kg7 {[%clk 0:00:10]} 43. Kb1 {[%clk 0:00:02]}  Rxg2 {[%clk 0:00:10]} 44. Nc3 {[%clk 0:00:02]}  g5 {[%clk 0:00:09]} 45. Nxa4 {[%clk 0:00:01]}  g4 {[%clk 0:00:10]} 46. Nc3 {[%clk 0:00:02]}  g3 {[%clk 0:00:10]} 47. Rd8 {[%clk 0:00:02]}  Rg1+ {[%clk 0:00:09]} 48. Ka2 {[%clk 0:00:01]}  g2 {[%clk 0:00:10]} 49. Rd3 {[%clk 0:00:01]}  Ra1+ {[%clk 0:00:10]} 50. Kxa1 {[%clk 0:00:02]}  g1=Q+ {[%clk 0:00:10]} 51. Ka2 {[%clk 0:00:03]}  Qa7+ {[%clk 0:00:11]} 52. Kb3 {[%clk 0:00:03]}  Qb6+ {[%clk 0:00:11]} 53. Nb5 {[%clk 0:00:04]}  Qc5 {[%clk 0:00:11]} 54. Rd5 {[%clk 0:00:04]}  Qb4+ {[%clk 0:00:11]} 55. Kc2 {[%clk 0:00:04]}  Qxc4+ {[%clk 0:00:12]} 56. Nc3 {[%clk 0:00:05]}  Bb4 {[%clk 0:00:12]} 57. Rg5+ {[%clk 0:00:05]}  Kf6 {[%clk 0:00:12]} 58. Rg3 {[%clk 0:00:04]}  Bxc3 {[%clk 0:00:12]} 59. Rxc3 {[%clk 0:00:05]}  Qa4+ {[%clk 0:00:13]} 60. Kb1 {[%clk 0:00:05]}  Ke5 {[%clk 0:00:13]} 61. Re3+ {[%clk 0:00:05]}  Kd4 {[%clk 0:00:12]} 62. Ra3 {[%clk 0:00:05]}  Qd1+ {[%clk 0:00:11]} 63. Ka2 {[%clk 0:00:06]}  f5 {[%clk 0:00:11]} 64. Ra8 {[%clk 0:00:05]}  Ke3 {[%clk 0:00:10]} 65. Re8+ {[%clk 0:00:04]}  Kf2 {[%clk 0:00:09]} 66. Ka3 {[%clk 0:00:05]}  Qa1+ {[%clk 0:00:07]} 67. Kb3 {[%clk 0:00:05]}  f4 {[%clk 0:00:07]} 68. Kc3 {[%clk 0:00:03]}  f3 {[%clk 0:00:07]} 69. Re6 {[%clk 0:00:02]}  Qe1+ {[%clk 0:00:07]} 70. Rxe1 {[%clk 0:00:01]}  Kxe1 {[%clk 0:00:08]} 71. b3 {[%clk 0:00:02]}  f2 {[%clk 0:00:09]} 0-1


[Site "https://www.chess.com"]

[Event "Titled Tuesday Blitz May 2 Late 2023"]
[White "Bachmann, Axel"]
[Black "Seemann, Jakub"]
[WhiteFideId "3700488"]
[BlackFideId "21874697"]
[WhiteElo "2605"]
[BlackElo "2364"]
[Result "0-1"]
[Round "06"]
[TimeControl "180+2"]
[Date "2023.05.02"]
[WhiteClock "0:00:10"]
[BlackClock "0:00:06"]

1. Nf3 {[%clk 0:02:57]}  Nf6 {[%clk 0:02:59]} 2. c4 {[%clk 0:02:57]}  e6 {[%clk 0:02:58]} 3. Nc3 {[%clk 0:02:56]}  d5 {[%clk 0:02:58]} 4. e3 {[%clk 0:02:56]}  Bb4 {[%clk 0:02:57]} 5. Qc2 {[%clk 0:02:56]}  O-O {[%clk 0:02:56]} 6. b3 {[%clk 0:02:56]}  b6 {[%clk 0:02:54]} 7. cxd5 {[%clk 0:02:52]}  exd5 {[%clk 0:02:53]} 8. Bb2 {[%clk 0:02:52]}  Bb7 {[%clk 0:02:53]} 9. Nb5 {[%clk 0:02:43]}  c6 {[%clk 0:02:45]} 10. Nbd4 {[%clk 0:02:42]}  Be7 {[%clk 0:02:08]} 11. Nf5 {[%clk 0:02:41]}  Nbd7 {[%clk 0:02:05]} 12. Ng5 {[%clk 0:02:38]}  h6 {[%clk 0:01:55]} 13. Nf3 {[%clk 0:02:25]}  c5 {[%clk 0:01:52]} 14. d4 {[%clk 0:02:21]}  cxd4 {[%clk 0:01:49]} 15. Nxe7+ {[%clk 0:02:13]}  Qxe7 {[%clk 0:01:50]} 16. Nxd4 {[%clk 0:02:03]}  Rac8 {[%clk 0:01:49]} 17. Qd2 {[%clk 0:02:01]}  Ne4 {[%clk 0:01:48]} 18. Nf5 {[%clk 0:02:02]}  Qe6 {[%clk 0:01:30]} 19. Qd4 {[%clk 0:02:02]}  Ndf6 {[%clk 0:01:21]} 20. g4 {[%clk 0:02:02]}  Rc2 {[%clk 0:00:43]} 21. Bd3 {[%clk 0:01:56]}  Rd2 {[%clk 0:00:29]} 22. Bc3 {[%clk 0:01:09]}  Ng5 {[%clk 0:00:20]} 23. Nh4 {[%clk 0:00:57]}  Rxd3 {[%clk 0:00:19]} 24. Qxd3 {[%clk 0:00:58]}  d4 {[%clk 0:00:18]} 25. f4 {[%clk 0:00:25]}  Bxh1 {[%clk 0:00:14]} 26. fxg5 {[%clk 0:00:23]}  Qxg4 {[%clk 0:00:12]} 27. Qxd4 {[%clk 0:00:19]}  Qg1+ {[%clk 0:00:09]} 28. Kd2 {[%clk 0:00:15]}  Qxh2+ {[%clk 0:00:06]} 29. Kc1 {[%clk 0:00:16]}  hxg5 {[%clk 0:00:06]} 30. Nf5 {[%clk 0:00:16]}  Be4 {[%clk 0:00:05]} 31. Ne7+ {[%clk 0:00:15]}  Kh7 {[%clk 0:00:04]} 32. Bd2 {[%clk 0:00:13]}  Re8 {[%clk 0:00:02]} 33. Qb4 {[%clk 0:00:05]}  Qc7+ {[%clk 0:00:03]} 34. Kb2 {[%clk 0:00:06]}  Qxe7 {[%clk 0:00:03]} 35. Qc4 {[%clk 0:00:05]}  Qe5+ {[%clk 0:00:02]} 36. Bc3 {[%clk 0:00:06]}  Qe6 {[%clk 0:00:03]} 37. Qb5 {[%clk 0:00:05]}  Kg6 {[%clk 0:00:04]} 38. Rg1 {[%clk 0:00:05]}  Bf5 {[%clk 0:00:03]} 39. e4 {[%clk 0:00:03]}  Qxe4 {[%clk 0:00:03]} 40. Ka3 {[%clk 0:00:02]}  Qc2 {[%clk 0:00:03]} 41. Bxf6 {[%clk 0:00:02]}  gxf6 {[%clk 0:00:03]} 42. Qxe8 {[%clk 0:00:02]}  Qc5+ {[%clk 0:00:03]} 43. Kb2 {[%clk 0:00:03]}  Qxg1 {[%clk 0:00:03]} 44. Qg8+ {[%clk 0:00:04]}  Kh5 {[%clk 0:00:04]} 45. Qxf7+ {[%clk 0:00:05]}  Kg4 {[%clk 0:00:04]} 46. Qd5 {[%clk 0:00:05]}  Qf2+ {[%clk 0:00:04]} 47. Ka3 {[%clk 0:00:06]}  Qf4 {[%clk 0:00:05]} 48. Qd1+ {[%clk 0:00:06]}  Kh4 {[%clk 0:00:05]} 49. Qe1+ {[%clk 0:00:06]}  Kh3 {[%clk 0:00:04]} 50. Qe8 {[%clk 0:00:07]}  Qe5 {[%clk 0:00:03]} 51. Qh5+ {[%clk 0:00:06]}  Kg3 {[%clk 0:00:04]} 52. Qd1 {[%clk 0:00:07]}  Qa5+ {[%clk 0:00:04]} 53. Kb2 {[%clk 0:00:07]}  Qe5+ {[%clk 0:00:05]} 54. Ka3 {[%clk 0:00:08]}  g4 {[%clk 0:00:05]} 55. Qg1+ {[%clk 0:00:08]}  Kf4 {[%clk 0:00:05]} 56. Qc1+ {[%clk 0:00:08]}  Ke4 {[%clk 0:00:05]} 57. Qc2+ {[%clk 0:00:07]}  Kd5 {[%clk 0:00:05]} 58. Qc4+ {[%clk 0:00:07]}  Kd6 {[%clk 0:00:06]} 59. Qg8 {[%clk 0:00:07]}  Qc5+ {[%clk 0:00:05]} 60. Kb2 {[%clk 0:00:08]}  Qe5+ {[%clk 0:00:06]} 61. Ka3 {[%clk 0:00:08]}  g3 {[%clk 0:00:06]} 62. Qd8+ {[%clk 0:00:08]}  Kc6 {[%clk 0:00:06]} 63. Qa8+ {[%clk 0:00:08]}  Kc5 {[%clk 0:00:06]} 64. Qg2 {[%clk 0:00:09]}  Kd4 {[%clk 0:00:06]} 65. Qg1+ {[%clk 0:00:09]}  Ke4 {[%clk 0:00:07]} 66. Qf1 {[%clk 0:00:10]}  Ke3 {[%clk 0:00:06]} 67. Qg1+ {[%clk 0:00:10]}  Kf3 {[%clk 0:00:06]} 68. Qd1+ {[%clk 0:00:10]}  Kf2 {[%clk 0:00:06]} 0-1


[Site "https://www.chess.com"]